bitfinex/quotes_SOLUSD_20251106
["timestamp","ask_amount","ask_price","bid_price","bid_amount"]
[1762442928527,111.72939389,158.25,158.22,6.87442156]
[1762442928894,111.72939389,158.25,158.21,6.87442156]
[1762442929096,0.71,158.24,158.2,6.87442156]
[1762442929332,104.7,158.25,158.21,14.61442156]
[1762442929621,22.82294719,158.28,158.24,6.87442156]
[1762442929811,0.71,158.28,158.24,6.87442156]
[1762442930011,104.7,158.29,158.26,6.87442156]
[1762442930221,104.7,158.29,158.25,7.74]
[1762442930222,0.71,158.28,158.25,7.74]
[1762442932102,7.02805981,158.28,158.25,7.74]
[1762442932728,105.32988158,158.29,158.24,6.87442156]
[1762442932915,9.98882769,158.33,158.24,6.87442156]
[1762442932916,0.2,158.33,158.28,6.87442156]
[1762442933110,0.2,158.33,158.27,6.87442156]
[1762442933111,6.97632137,158.32,158.27,6.87442156]
[1762442933423,22.7671248,158.32,158.28,6.87442156]
[1762442933632,6.51600948,158.33,158.3,6.87442156]
[1762442933806,0.66,158.32,158.27,6.87442156]
[1762442934011,7.53442156,158.32,158.26,14.61442156]
[1762442934524,0.66,158.31,158.26,14.61442156]
[1762442934726,7.50430314,158.3,158.26,7.74]
[1762442934925,7.50430314,158.3,158.25,6.87442156]
[1762442934926,0.62988158,158.3,158.25,6.87442156]
[1762442935133,0.66,158.3,158.26,6.87442156]
[1762442935509,0.66,158.3,158.27,6.87442156]
[1762442935930,6.31751847,158.29,158.27,6.87442156]
[1762442936323,6.31713168,158.3,158.28,6.87442156]
[1762442936636,6.31713168,158.3,158.24,8.39]
[1762442936637,6.97713168,158.3,158.26,6.87442156]
[1762442936834,0.66,158.29,158.26,6.87442156]
[1762442937332,0.66,158.29,158.25,6.87442156]
[1762442937532,7.53442156,158.29,158.2,26.91302719]
[1762442937734,6.87442156,158.27,158.21,14.61442156]
[1762442937936,29.64992768,158.26,158.21,7.74]
[1762442938237,29.64992768,158.26,158.18,6.87442156]
[1762442938238,6.87442156,158.24,158.18,6.87442156]
[1762442938444,6.87442156,158.24,158.18,14.61442156]
[1762442938613,0.66,158.23,158.18,14.61442156]
[1762442939133,0.66,158.23,158.19,6.87442156]
[1762442939521,22.77550612,158.26,158.21,6.87442156]
[1762442939712,0.66,158.25,158.21,6.87442156]
[1762442940113,0.66,158.25,158.22,6.87442156]
[1762442940350,6.94620295,158.32,158.24,6.87442156]
[1762442940512,6.97632137,158.32,158.23,8.39]
[1762442940710,0.66,158.31,158.28,6.87442156]
[1762442941128,0.66,158.31,158.27,7.74]
[1762442941349,6.5160436,158.33,158.27,7.74]
[1762442941528,6.5160436,158.33,158.29,6.87442156]
[1762442941711,22.9658497,158.33,158.29,6.87442156]
[1762442941918,0.66,158.32,158.28,6.87442156]
[1762442942539,6.87442156,158.31,158.26,6.87442156]
[1762442942736,6.87442156,158.3,158.25,14.61442156]
[1762442943022,6.87442156,158.28,158.23,7.74]
[1762442943222,7.53442156,158.29,158.24,6.87442156]
[1762442943427,105.36,158.3,158.26,6.87442156]
[1762442943631,105.36,158.3,158.25,6.87442156]
[1762442943842,6.31751847,158.29,158.25,6.87442156]
[1762442944053,6.97751847,158.29,158.23,7.74]
[1762442944360,22.77131466,158.29,158.25,6.87442156]
[1762442944852,22.11131466,158.29,158.25,6.87442156]
[1762442945150,22.11131466,158.29,158.26,6.87442156]
[1762442945319,6.31751847,158.29,158.27,6.87442156]
[1762442945522,111.01723289,158.3,158.28,6.87442156]
[1762442945830,111.67723289,158.3,158.27,6.87442156]
[1762442946429,7.53442156,158.29,158.23,27.46642156]
[1762442946615,6.87442156,158.25,158.16,0.65]
[1762442946815,6.87442156,158.25,158.14,6.87442156]
[1762442946816,6.87442156,158.21,158.14,6.87442156]
[1762442947024,6.87442156,158.19,158.09,0.1]
[1762442947229,0.62988158,158.2,158.09,0.1]
[1762442947230,0.66,158.18,158.1,0.65]
[1762442947455,7.53442156,158.18,158.11,3.14]
[1762442947619,7.53442156,158.18,158.09,0.1]
[1762442947620,6.87442156,158.13,158.09,0.1]
[1762442947824,6.3239107,158.13,158.09,6.97442156]
[1762442948124,0.66,158.12,158.09,0.1]
[1762442948339,5.03582253,158.12,158.09,0.1]
[1762442948538,0.66,158.12,158.09,0.1]
[1762442948743,6.3239107,158.13,158.1,4.37582253]
[1762442948947,0.66,158.11,158.09,0.1]
[1762442949244,6.9839107,158.13,158.09,4.47582253]
[1762442949638,6.9839107,158.13,158.1,4.37582253]
[1762442949846,0.66,158.19,158.12,4.37582253]
[1762442950158,21.14616232,158.19,158.13,4.37582253]
[1762442950525,22.78618986,158.19,158.14,4.37582253]
[1762442950823,4.37582253,158.19,158.14,4.37582253]
[1762442951021,0.66,158.18,158.15,4.37582253]
[1762442951644,22.1239373,158.2,158.15,4.37582253]
[1762442951848,0.66,158.19,158.15,4.37582253]
[1762442952043,6.32191174,158.18,158.15,4.37582253]
[1762442952429,22.1266911,158.18,158.14,4.37582253]
[1762442952828,22.7866911,158.18,158.14,4.37582253]
[1762442953023,0.66,158.17,158.11,7.74]
[1762442953226,0.66,158.17,158.09,20.692]
[1762442953227,4.37582253,158.15,158.09,0.1]
[1762442953733,5.03582253,158.14,158.09,4.47582253]
[1762442954247,6.32311097,158.15,158.1,4.37582253]
[1762442954441,6.98311097,158.15,158.11,4.37582253]
[1762442954654,0.66,158.14,158.1,4.37582253]
[1762442955155,0.66,158.14,158.09,4.47582253]
[1762442955353,8.4,158.18,158.13,4.37582253]
[1762442955526,0.66,158.18,158.14,4.37582253]
[1762442955730,0.66,158.21,158.17,4.37582253]
[1762442956030,6.98077768,158.21,158.14,20.592]
[1762442956231,4.37582253,158.2,158.14,20.592]
[1762442956434,5.03582253,158.2,158.15,4.37582253]
[1762442956752,0.66,158.19,158.15,4.37582253]
[1762442958051,6.32191174,158.18,158.13,4.37582253]
[1762442958257,6.32191174,158.18,158.14,4.37582253]
[1762442958548,111.02191174,158.18,158.14,4.37582253]
[1762442958753,111.02191174,158.18,158.16,4.37582253]
[1762442959634,111.02191174,158.18,158.15,4.37582253]
[1762442959829,112.44,158.22,158.17,4.37582253]
[1762442960029,111.02031828,158.22,158.16,20.592]
[1762442960251,111.02031828,158.22,158.16,28.332]
[1762442960649,104.7,158.22,158.19,4.37582253]
[1762442961053,105.36,158.22,158.19,4.37582253]
[1762442961250,104.7,158.22,158.19,4.37582253]
[1762442961561,20.83383914,158.25,158.2,4.37582253]
[1762442961747,6.97951466,158.24,158.2,4.37582253]
[1762442961942,27.15412384,158.24,158.19,4.37582253]
[1762442962132,6.32031348,158.22,158.18,4.37582253]
[1762442962558,7.01031348,158.22,158.18,4.37582253]
[1762442962747,0.69,158.21,158.18,4.37582253]
[1762442962950,6.32031348,158.22,158.2,4.37582253]
[1762442963153,6.31957853,158.24,158.21,4.37582253]
[1762442963655,0.69,158.23,158.2,4.37582253]
[1762442963841,0.69,158.23,158.19,4.37582253]
[1762442964563,6.31911532,158.25,158.2,4.37582253]
[1762442964746,7.00911532,158.25,158.2,4.37582253]
[1762442964948,5.06582253,158.24,158.19,4.37582253]
[1762442965147,5.06582253,158.24,158.11,0.63247106]
[1762442965148,4.37582253,158.2,158.15,4.37582253]
[1762442965353,4.37582253,158.18,158.13,7.74]
[1762442965550,8.36988158,158.2,158.13,7.74]
[1762442965551,4.37582253,158.17,158.13,7.74]
[1762442965754,4.37582253,158.15,158.09,4.47582253]
[1762442965967,4.37582253,158.13,158.09,0.1]
[1762442966146,4.37582253,158.12,158.09,0.1]
[1762442966355,5.06582253,158.12,158.09,0.1]
[1762442966562,7.01471064,158.11,158.09,0.1]
[1762442966961,5.69570411,158.1,158.09,0.1]
[1762442967166,5.06582253,158.1,158.09,0.1]
[1762442967658,5.69570411,158.1,158.09,0.1]
[1762442967862,1.31988158,158.1,158.09,0.1]
[1762442968067,5.06582253,158.1,158.09,0.1]
[1762442968242,18.97087084,158.1,158.02,4.37582253]
[1762442968439,18.97087084,158.1,157.97,26.96882769]
[1762442968440,4.37582253,158.06,157.97,9.88882769]
[1762442968641,4.37582253,158.01,157.97,0.1]
[1762442968842,0.62988158,158.06,157.97,0.1]
[1762442968843,4.37582253,158.0,157.97,0.1]
[1762442969044,0.69,158.0,157.97,0.1]
[1762442969247,0.69,157.99,157.97,0.1]
[1762442970049,4.37582253,157.98,157.97,0.1]
[1762442970247,0.69,157.99,157.97,0.1]
[1762442970248,5.69570411,157.99,157.97,0.1]
[1762442970448,0.62988158,157.99,157.97,0.1]
[1762442970641,6.95942947,157.99,157.97,0.1]
[1762442970871,7.01954789,157.99,157.97,0.1]
[1762442971042,0.69,157.98,157.97,0.1]
[1762442971242,14.99681179,157.98,157.97,0.1]
[1762442971449,5.06582253,157.98,157.97,0.1]
[1762442971643,7.72,158.0,157.97,0.1]
[1762442971867,0.69,157.99,157.97,0.1]
[1762442972043,14.69892579,158.01,157.97,0.1]
[1762442972369,0.69,157.99,157.97,0.1]
[1762442972547,6.32991517,157.98,157.97,0.1]
[1762442972748,11.33561928,157.98,157.97,0.1]
[1762442972965,7.64979675,157.98,157.97,0.1]
[1762442973347,0.14216157,157.96,157.94,0.1]
[1762442973563,5.00570411,157.95,157.94,0.1]
[1762442973884,5.69570411,157.95,157.94,0.1]
[1762442974071,15.62669337,157.95,157.94,0.1]
[1762442974460,5.69570411,157.95,157.94,0.1]
[1762442974769,19.76682155,157.95,157.94,0.1]
[1762442975874,6.33111744,157.95,157.94,0.1]
[1762442976167,7.02111744,157.95,157.94,0.1]
[1762442976366,11.39693997,157.95,157.94,0.1]
[1762442976555,19.13693997,157.95,157.94,0.1]
[1762442977552,14.76111744,157.95,157.94,0.1]
[1762442978567,14.07111744,157.95,157.94,0.1]
[1762442978785,0.62988158,157.97,157.94,0.1]
[1762442978982,7.019568,157.99,157.95,4.37582253]
[1762442979286,105.39,157.98,157.94,0.1]
[1762442979444,109.76582253,157.98,157.94,0.1]
[1762442979651,5.06582253,157.97,157.94,0.1]
[1762442980170,13.43570411,157.96,157.94,0.1]
[1762442980544,0.69,157.95,157.94,0.1]
[1762442981669,104.7,157.98,157.94,0.1]
[1762442981871,104.7,157.98,157.94,4.47582253]
[1762442982063,104.7,157.98,157.96,4.37582253]
[1762442982260,104.7,157.98,157.94,0.1]
[1762442982261,104.7,157.98,157.95,4.37582253]
[1762442982456,7.74,158.01,157.97,4.37582253]
[1762442982658,7.74,158.01,157.96,4.37582253]
[1762442982863,7.74,158.01,157.94,0.1]
[1762442982864,4.37582253,157.98,157.94,0.1]
[1762442983052,4.37582253,157.96,157.94,0.1]
[1762442983385,111.66030527,157.97,157.94,0.1]
[1762442983555,5.06582253,157.96,157.94,0.1]
[1762442984073,128.06669337,157.95,157.94,0.1]
[1762442984264,127.43681179,157.95,157.94,0.1]
[1762442985365,133.76792923,157.95,157.94,0.1]
[1762442986175,9.78882769,157.91,157.89,0.1]
[1762442986376,12.11582253,157.9,157.89,0.1]
[1762442986562,21.36404315,157.92,157.89,0.1]
[1762442986563,12.80582253,157.91,157.89,0.1]
[1762442986875,9.93098926,157.9,157.89,0.1]
[1762442987178,14.99681179,157.9,157.89,0.1]
[1762442987372,16.95411148,157.9,157.89,0.1]
[1762442987574,21.32993401,157.9,157.89,1e-08]
[1762442987976,41.92193401,157.9,157.89,1e-08]
[1762442989677,49.66193401,157.9,157.89,1e-08]
[1762442990267,68.59193401,157.9,157.89,1e-08]
[1762442991169,49.51977244,157.9,157.89,1e-08]
[1762442991565,68.59193401,157.9,157.89,1e-08]
[1762442993778,64.21611148,157.9,157.89,1e-08]
[1762442994094,68.59193401,157.9,157.89,1e-08]
[1762442995301,47.99993401,157.9,157.89,1e-08]
[1762442997487,28.71882769,157.86,157.78,0.1]
[1762442997681,4.37582253,157.82,157.78,0.1]
[1762442997997,7.74,157.82,157.79,4.37582253]
[1762442998182,18.30087084,157.84,157.78,0.1]
[1762442998397,23.33669337,157.84,157.79,4.37582253]
[1762442999009,12.77582253,157.84,157.79,4.37582253]
[1762442999314,0.66,157.83,157.78,3.97582253]
[1762442999474,8.4,157.83,157.78,3.97582253]
[1762442999675,6.33633253,157.82,157.78,3.97582253]
[1762442999886,29.91581139,157.83,157.78,0.7]
[1762443000170,0.62988158,157.86,157.81,4.37582253]
[1762443000374,6.3319192,157.93,157.85,24.96782253]
[1762443000575,19.08403746,157.97,157.92,4.37582253]
[1762443000803,22.15640434,157.97,157.92,4.37582253]
[1762443001095,4.37582253,157.94,157.88,4.37582253]
[1762443001289,6.33031588,157.97,157.92,4.37582253]
[1762443001488,10.70613841,157.97,157.92,4.37582253]
[1762443001690,26.53192811,157.97,157.91,4.37582253]
[1762443001882,5.66570411,157.96,157.9,4.37582253]
[1762443002085,4.37582253,157.92,157.86,4.37582253]
[1762443002489,0.77204315,157.91,157.86,4.37582253]
[1762443002672,5.80786568,157.91,157.83,0.7]
[1762443002871,5.80786568,157.91,157.82,4.37582253]
[1762443002872,4.37582253,157.88,157.82,4.37582253]
[1762443003076,4.37582253,157.86,157.8,4.37582253]
[1762443003283,4.37582253,157.86,157.75,9.78882769]
[1762443003284,4.37582253,157.84,157.78,4.37582253]
[1762443003501,8.36988158,157.85,157.79,5.07582253]
[1762443003677,6.33512828,157.85,157.82,4.37582253]
[1762443004004,6.33512828,157.85,157.81,4.37582253]
[1762443004198,22.17294899,157.85,157.81,4.37582253]
[1762443004520,6.33465389,157.87,157.83,4.37582253]
[1762443004810,6.33465389,157.87,157.82,0.7]
[1762443004811,6.33071663,157.96,157.89,20.592]
[1762443004982,6.33071663,157.96,157.92,4.37582253]
[1762443005179,4.37582253,157.95,157.89,24.96782253]
[1762443005384,0.66,157.95,157.9,4.37582253]
[1762443005786,0.66,157.95,157.78,2.63379388]
[1762443005787,4.37582253,157.92,157.78,2.63379388]
[1762443005988,4.37582253,157.89,157.83,4.37582253]
[1762443006199,4.37582253,157.88,157.82,4.37582253]
[1762443006407,5.03582253,157.89,157.83,4.37582253]
[1762443006707,4.37582253,157.88,157.79,0.7]
[1762443006918,4.37582253,157.87,157.81,4.37582253]
[1762443007198,0.14216157,157.86,157.81,4.37582253]
[1762443007413,9.78882769,157.85,157.8,20.592]
[1762443007578,17.52882769,157.87,157.82,4.37582253]
[1762443007782,22.1715444,157.86,157.81,5.07582253]
[1762443007994,26.54736693,157.86,157.8,4.37582253]
[1762443008204,9.93098926,157.85,157.77,7.03795922]
[1762443008403,9.93098926,157.85,157.8,4.37582253]
[1762443008773,10.59098926,157.85,157.8,4.37582253]
[1762443008974,0.66,157.84,157.8,4.37582253]
[1762443009190,0.66,157.84,157.8,24.96782253]
[1762443009433,0.66,157.9,157.82,4.37582253]
[1762443009710,6.3319192,157.93,157.89,4.37582253]
[1762443009883,11.36774173,157.93,157.87,4.37582253]
[1762443010080,0.66,157.92,157.75,8.08809043]
[1762443010294,0.62988158,157.91,157.83,6.8968139]
[1762443010504,6.8968139,157.88,157.83,6.8968139]
[1762443010874,7.5568139,157.88,157.83,6.8968139]
[1762443011098,0.66,157.88,157.83,6.8968139]
[1762443011280,0.66,157.88,157.84,6.8968139]
[1762443011481,0.66,157.88,157.83,6.8968139]
[1762443011693,6.33432571,157.87,157.82,6.8968139]
[1762443012094,6.33432571,157.87,157.83,0.7]
[1762443012290,6.33432571,157.87,157.81,20.592]
[1762443012291,0.66,157.86,157.81,27.4888139]
[1762443012599,0.66,157.86,157.79,35.2288139]
[1762443012600,6.8968139,157.85,157.79,35.2288139]
[1762443012820,6.8968139,157.83,157.75,6.33909501]
[1762443012988,15.2968139,157.85,157.78,6.8968139]
[1762443013319,6.33396221,157.88,157.83,6.8968139]
[1762443013475,6.8968139,157.87,157.81,6.8968139]
[1762443013680,6.33472697,157.86,157.8,27.4888139]
[1762443013876,6.33392449,157.88,157.83,6.8968139]
[1762443014412,6.33392449,157.88,157.82,6.8968139]
[1762443014413,22.82873573,157.88,157.82,6.8968139]
[1762443014595,7.5568139,157.87,157.81,7.5968139]
[1762443014794,0.66,157.87,157.82,6.8968139]
[1762443015298,0.66,157.87,157.8,28.332]
[1762443015500,9.78882769,157.86,157.81,6.8968139]
[1762443015802,7.5568139,157.87,157.81,7.5968139]
[1762443016003,6.33472697,157.86,157.82,6.8968139]
[1762443016209,6.33472697,157.86,157.81,6.8968139]
[1762443016404,6.33472697,157.86,157.81,7.5968139]
[1762443016586,6.33472697,157.86,157.82,0.7]
[1762443016909,6.33472697,157.86,157.8,20.592]
[1762443017209,22.8315444,157.86,157.8,20.592]
[1762443017389,22.1715444,157.86,157.81,6.8968139]
[1762443017880,22.8315444,157.86,157.8,21.292]
[1762443018089,29.7283583,157.86,157.8,27.4888139]
[1762443018288,6.33472697,157.86,157.82,6.8968139]
[1762443018706,6.33472697,157.86,157.83,6.8968139]
[1762443018912,6.33472697,157.86,157.82,6.8968139]
[1762443019110,0.66,157.85,157.81,6.8968139]
[1762443019411,9.93098926,157.89,157.83,6.8968139]
[1762443019598,16.68564159,157.88,157.81,0.7]
[1762443019804,6.8968139,157.87,157.81,7.5968139]
[1762443020013,6.33472697,157.86,157.82,6.8968139]
[1762443020404,6.99472697,157.86,157.82,6.8968139]
[1762443020916,22.8315444,157.86,157.81,6.8968139]
[1762443021212,6.8968139,157.85,157.79,15.3368139]
[1762443021410,29.7283583,157.86,157.8,6.8968139]
[1762443021997,6.33432571,157.87,157.82,6.8968139]
[1762443022312,6.33432571,157.87,157.83,6.8968139]
[1762443022486,6.8968139,157.84,157.77,20.592]
[1762443022686,6.8968139,157.82,157.77,6.8968139]
[1762443022888,9.93098926,157.81,157.75,7.72]
[1762443023090,6.8968139,157.8,157.75,7.72]
[1762443023292,9.93098926,157.83,157.77,6.8968139]
[1762443023491,8.17669548,157.84,157.78,6.8968139]
[1762443023714,15.2668139,157.85,157.8,6.8968139]
[1762443023918,0.65,157.84,157.79,6.8968139]
[1762443024219,0.65,157.84,157.77,20.592]
[1762443024220,6.33593106,157.83,157.8,6.8968139]
[1762443024513,6.8968139,157.81,157.68,3.30912466]
[1762443024723,16.82780316,157.81,157.75,6.8968139]
[1762443024900,16.82780316,157.81,157.69,23.8503839]
[1762443024901,15.2668139,157.82,157.76,6.8968139]
[1762443025106,7.5468139,157.81,157.74,0.71]
[1762443025290,7.5468139,157.81,157.75,6.8968139]
[1762443025493,7.5468139,157.81,157.72,20.592]
[1762443025494,6.8968139,157.76,157.7,0.71]
[1762443025707,6.8968139,157.75,157.7,6.8968139]
[1762443025904,0.77204315,157.77,157.7,6.8968139]
[1762443026104,8.17669548,157.77,157.71,6.8968139]
[1762443026296,20.592,157.74,157.64,0.71]
[1762443026502,6.8968139,157.72,157.67,6.8968139]
[1762443027018,7.5468139,157.71,157.65,6.8968139]
[1762443027217,6.8968139,157.7,157.64,6.8968139]
[1762443027421,9.93098926,157.71,157.65,6.8968139]
[1762443027623,16.82780316,157.71,157.64,0.71]
[1762443027804,17.47780316,157.71,157.65,6.8968139]
[1762443028005,17.47780316,157.71,157.64,0.71]
[1762443028210,6.34115409,157.7,157.65,6.8968139]
[1762443028498,22.19403931,157.7,157.64,0.71]
[1762443028723,22.19403931,157.7,157.65,6.8968139]
[1762443029111,6.99115409,157.7,157.65,6.8968139]
[1762443029305,30.56125807,157.72,157.65,20.592]
[1762443029510,37.45807197,157.72,157.66,6.8968139]
[1762443029824,21.60719701,157.72,157.67,6.8968139]
[1762443030010,21.60719701,157.72,157.66,6.8968139]
[1762443030213,18.93,157.78,157.69,6.8968139]
[1762443030214,17.33564159,157.76,157.69,6.8968139]
[1762443030532,6.8968139,157.71,157.64,0.71]
[1762443030708,6.8968139,157.71,157.63,0.2]
[1762443030709,0.62988158,157.7,157.63,0.2]
[1762443030909,14.6368139,157.72,157.66,6.8968139]
[1762443031105,15.91669548,157.72,157.66,6.8968139]
[1762443031304,6.8968139,157.7,157.63,27.6888139]
[1762443031615,9.78882769,157.69,157.63,0.2]
[1762443031817,6.8968139,157.67,157.63,0.2]
[1762443032004,6.8968139,157.65,157.63,0.2]
[1762443032203,13.8702631,157.64,157.63,0.2]
[1762443032398,6.9734492,157.64,157.63,0.2]
[1762443032627,13.239839,157.66,157.63,0.2]
[1762443032834,7.5468139,157.66,157.63,0.2]
[1762443033127,8.17669548,157.66,157.63,0.2]
[1762443033625,6.34206329,157.68,157.64,0.71]
[1762443033931,13.86875877,157.68,157.63,0.2]
[1762443034118,7.5468139,157.67,157.63,0.2]
[1762443034300,6.3427629,157.66,157.63,0.2]
[1762443034507,29.74648406,157.66,157.63,0.2]
[1762443034824,6.342395,157.67,157.63,0.2]
[1762443035029,13.2392089,157.67,157.63,0.2]
[1762443035207,0.65,157.66,157.63,0.2]
[1762443035399,7.52669548,157.65,157.63,0.2]
[1762443035625,0.65,157.66,157.63,0.2]
[1762443035826,6.97193793,157.68,157.63,0.2]
[1762443036119,14.51875183,157.68,157.63,0.2]
[1762443036333,7.74,157.7,157.65,6.8968139]
[1762443036510,7.74,157.7,157.64,0.71]
[1762443036511,8.36988158,157.73,157.67,6.8968139]
[1762443036702,6.8968139,157.74,157.68,6.8968139]
[1762443036901,6.8968139,157.71,157.66,20.592]
[1762443037101,7.52669548,157.7,157.64,27.4888139]
[1762443037328,8.44,157.73,157.64,20.592]
[1762443037329,7.52669548,157.69,157.64,20.592]
[1762443037534,7.5968139,157.72,157.66,6.8968139]
[1762443037735,7.5968139,157.72,157.65,0.71]
[1762443037911,7.5968139,157.72,157.66,6.8968139]
[1762443038100,0.7,157.72,157.66,7.74]
[1762443038300,6.34075201,157.71,157.67,6.8968139]
[1762443038522,0.7,157.72,157.68,6.8968139]
[1762443038800,0.7,157.79,157.71,6.8968139]
[1762443039006,6.8968139,157.78,157.71,7.74]
[1762443039206,38.14526463,157.81,157.75,6.8968139]
[1762443039444,38.14526463,157.81,157.72,0.71]
[1762443039445,0.7,157.83,157.78,6.8968139]
[1762443039620,0.62988158,157.88,157.81,6.8968139]
[1762443039621,0.7,157.86,157.81,6.8968139]
[1762443039807,6.8968139,157.85,157.8,6.8968139]
[1762443040017,6.8968139,157.83,157.78,7.74]
[1762443040248,7.5968139,157.85,157.79,6.8968139]
[1762443040406,6.33552965,157.84,157.81,6.8968139]
[1762443040726,7.03513996,157.85,157.81,6.8968139]
[1762443040910,7.03513996,157.85,157.78,8.45]
[1762443041227,22.87296067,157.85,157.78,8.45]
[1762443041421,22.87296067,157.85,157.79,7.74]
[1762443041622,22.87296067,157.85,157.81,6.8968139]
[1762443041623,7.03513996,157.85,157.81,6.8968139]
[1762443041926,0.7,157.84,157.8,6.8968139]
[1762443042131,0.7,157.84,157.79,6.8968139]
[1762443042306,22.17575872,157.83,157.79,6.8968139]
[1762443042634,6.8968139,157.82,157.76,20.592]
[1762443042805,7.5968139,157.82,157.77,6.8968139]
[1762443043005,0.7,157.82,157.77,6.8968139]
[1762443043214,7.5968139,157.81,157.74,29.042]
[1762443043437,0.7,157.81,157.74,29.042]
[1762443043732,0.7,157.81,157.76,6.8968139]
[1762443044201,22.17575872,157.83,157.78,6.8968139]
[1762443044404,0.7,157.88,157.82,6.8968139]
[1762443044608,0.7,157.9,157.86,6.8968139]
[1762443044905,0.7,157.9,157.83,21.302]
[1762443044906,22.16452409,157.91,157.87,6.8968139]
[1762443045106,22.16452409,157.91,157.85,7.74]
[1762443045335,29.76133799,157.91,157.85,14.6368139]
[1762443045625,21.22188158,157.95,157.87,6.8968139]
[1762443045825,0.7,157.93,157.89,6.8968139]
[1762443046023,6.33151829,157.94,157.86,21.302]
[1762443046222,6.33151829,157.94,157.9,6.8968139]
[1762443046415,6.33111744,157.95,157.89,14.6368139]
[1762443046614,7.52669548,157.98,157.92,6.8968139]
[1762443046807,0.7,157.98,157.94,6.8968139]
[1762443047007,0.7,157.98,157.93,6.8968139]
[1762443047208,0.7,157.97,157.92,6.8968139]
[1762443047513,7.02910957,158.01,157.95,6.8968139]
[1762443047726,22.851838,158.01,157.95,6.8968139]
[1762443047919,6.8968139,157.98,157.92,20.592]
[1762443048113,6.8968139,157.97,157.93,7.72]
[1762443048321,6.32991517,157.98,157.92,27.4888139]
[1762443048526,7.02991517,157.98,157.93,6.8968139]
[1762443048834,10.48882769,157.97,157.92,7.72]
[1762443049139,10.48882769,157.97,157.89,6.33349428]
[1762443049140,7.03897547,157.96,157.89,20.592]
[1762443049434,7.73897547,157.96,157.9,6.8968139]
[1762443049930,0.7,157.95,157.89,14.6168139]
[1762443050133,6.8968139,157.9,157.84,6.8968139]
[1762443050333,6.8968139,157.9,157.78,6.33786835]
[1762443050334,22.16873573,157.88,157.83,6.8968139]
[1762443050533,7.52669548,157.87,157.81,6.8968139]
[1762443050734,7.52669548,157.87,157.79,6.8968139]
[1762443050735,6.8968139,157.85,157.79,6.8968139]
[1762443050926,16.82780316,157.86,157.8,6.8968139]
[1762443051230,7.03897547,157.84,157.78,7.72]
[1762443051414,9.78882769,157.83,157.78,7.72]
[1762443051609,0.7,157.84,157.78,7.72]
[1762443051809,7.72,157.87,157.81,6.8968139]
[1762443052010,14.6168139,157.87,157.81,6.8968139]
[1762443052231,44.09061731,157.88,157.83,6.8968139]
[1762443052232,22.86873573,157.88,157.83,6.8968139]
[1762443052436,22.16873573,157.88,157.84,6.8968139]
[1762443052735,6.33392449,157.88,157.85,6.8968139]
[1762443052933,50.47834081,157.9,157.81,0.67]
[1762443053232,14.0534808,157.9,157.87,6.8968139]
[1762443053426,6.3334808,157.9,157.86,6.8968139]
[1762443053926,7.0234808,157.9,157.87,6.8968139]
[1762443054332,6.33232016,157.92,157.88,6.8968139]
[1762443054537,22.16312056,157.92,157.88,6.8968139]
[1762443055147,0.69,157.91,157.84,0.67]
[1762443055317,7.5868139,157.91,157.85,6.8968139]
[1762443055517,0.69,157.91,157.86,6.8968139]
[1762443055847,0.69,157.91,157.83,34.64783482]
[1762443055848,0.69,157.91,157.87,6.8968139]
[1762443056133,6.8968139,157.89,157.81,0.67]
[1762443056334,6.8968139,157.89,157.71,31.70310753]
[1762443056335,6.33552965,157.84,157.74,9.78882769]
[1762443056523,7.5868139,157.83,157.75,0.67]
[1762443056719,7.5868139,157.83,157.77,6.8968139]
[1762443056935,8.21669548,157.83,157.77,6.8968139]
[1762443057124,22.17435377,157.84,157.79,6.8968139]
[1762443057513,22.86435377,157.84,157.79,6.8968139]
[1762443057712,22.86435377,157.84,157.76,8.39]
[1762443057946,22.86435377,157.84,157.79,6.8968139]
[1762443058126,6.33552965,157.84,157.8,6.8968139]
[1762443058330,22.17435377,157.84,157.79,6.8968139]
[1762443058639,22.17435377,157.84,157.8,6.8968139]
[1762443058837,22.86435377,157.84,157.79,6.8968139]
[1762443059022,7.02552965,157.84,157.79,6.8968139]